bitfinex-derivatives/quotes_BTCF0:USTF0_20210707
["timestamp","ask_amount","ask_price","bid_price","bid_amount"]
[1625697877199,0.001,34198.0,34197.0,0.76008526]
[1625697877501,0.50851049,34198.0,34197.0,0.76008526]
[1625697880430,0.50851049,34198.0,34197.0,4.58088526]
[1625697881780,0.84682503,34198.0,34197.0,4.58088526]
[1625697882305,0.50851049,34198.0,34197.0,4.58088526]
[1625697882531,0.8468053,34198.0,34197.0,4.58088526]
[1625697883808,0.50851049,34198.0,34197.0,4.58088526]
[1625697883958,0.84669932,34198.0,34197.0,4.58088526]
[1625697884112,0.84669932,34198.0,34197.0,4.57561152]
[1625697884258,0.84669932,34198.0,34197.0,4.58088705]
[1625697885386,0.84569932,34198.0,34197.0,4.58088705]
[1625697886666,0.50751049,34198.0,34197.0,4.58088705]
[1625697886966,0.84549328,34198.0,34197.0,4.58088705]
[1625697887718,0.50751049,34198.0,34197.0,5.60943842]
[1625697888317,0.84508704,34198.0,34197.0,5.60943842]
[1625697889218,0.50751049,34198.0,34197.0,5.60943842]
[1625697890043,0.84583135,34198.0,34197.0,5.60943842]
[1625697890267,0.50751049,34198.0,34197.0,5.60943842]
[1625697891619,0.84643385,34198.0,34197.0,5.60943842]
[1625697891918,0.50751049,34198.0,34197.0,5.60943842]
[1625697896501,0.33940267,34198.0,34197.0,6.80992377]
[1625697896729,0.84835123,34198.0,34197.0,6.80992377]
[1625697897030,0.33955325,34200.0,34197.0,8.18183526]
[1625697897177,0.33955325,34200.0,34197.0,8.23883526]
[1625697897477,0.9115,34201.0,34199.0,4.35601621]
[1625697897928,0.9115,34201.0,34200.0,4.12152859]
[1625697898077,0.9115,34201.0,34200.0,5.66447203]
[1625697899430,0.9115,34201.0,34200.0,4.12152859]
[1625697899582,0.9115,34201.0,34200.0,4.36210403]
[1625697900106,0.9115,34201.0,34200.0,5.90479121]
[1625697903638,0.9115,34201.0,34200.0,4.36210403]
[1625697904091,1.25951,34201.0,34200.0,4.36210403]
[1625697904390,1.76958307,34201.0,34200.0,1.78945288]
[1625697904541,5.84618307,34201.0,34200.0,1.78945288]
[1625697905214,5.84618307,34201.0,34200.0,5.82635288]
[1625697905815,1.76958307,34201.0,34200.0,5.82635288]
[1625697906117,1.76958307,34201.0,34200.0,7.02708474]
[1625697907242,1.42157307,34201.0,34200.0,7.02708474]
[1625697908970,2.10403551,34201.0,34200.0,9.08701837]
[1625697909421,3.1285189,34201.0,34200.0,7.71372928]
[1625697913256,4.32371636,34201.0,34200.0,6.51299742]
[1625697913404,3.1285189,34201.0,34200.0,7.71445449]
[1625697913703,3.1285189,34201.0,34200.0,6.51299742]
[1625697913855,4.32401807,34201.0,34200.0,6.51299742]
[1625697915579,4.32401807,34201.0,34200.0,5.48393696]
[1625697915880,4.32401807,34201.0,34200.0,6.5137828]
[1625697916030,4.32401807,34201.0,34200.0,5.48393696]
[1625697916179,7.95671807,34201.0,34200.0,5.48393696]
[1625697916480,7.95671807,34201.0,34200.0,1.44703696]
[1625697916632,9.32257772,34201.0,34200.0,1.10374445]
[1625697916930,9.32257772,34201.0,34200.0,0.58921422]
[1625697917680,9.32257772,34201.0,34200.0,0.24586219]
[1625697920234,9.32257772,34201.0,34200.0,0.5892902]
[1625697921060,9.32257772,34201.0,34200.0,4.9295902]
[1625697921810,9.32257772,34201.0,34200.0,5.44482668]
[1625697922488,9.32257772,34201.0,34200.0,5.10139867]
[1625697922788,9.32257772,34201.0,34200.0,5.78840168]
[1625697923389,9.32257772,34201.0,34200.0,5.10139867]
[1625697923690,9.32257772,34201.0,34200.0,5.44491826]
[1625697923989,9.32257772,34201.0,34200.0,4.92968178]
[1625697924291,10.85722971,34201.0,34200.0,4.58616219]
[1625697924741,10.85722971,34201.0,34200.0,0.24586219]
[1625697925191,10.85722971,34201.0,34198.0,0.85984364]
[1625697925491,4.77565657,34199.0,34198.0,0.85984364]
[1625697925645,5.01623201,34199.0,34198.0,0.85984364]
[1625697925871,5.01623201,34199.0,34198.0,0.86509578]
[1625697926019,5.01623201,34199.0,34198.0,0.34979669]
[1625697926695,5.01623201,34199.0,34198.0,9.669e-05]
[1625697927296,5.01623201,34199.0,34198.0,0.00109669]
[1625697927748,6.55055506,34199.0,34198.0,0.00109669]
[1625697928347,6.55055506,34199.0,34196.0,0.51532531]
[1625697928874,1.77489849,34199.0,34197.0,0.00524565]
[1625697929175,4.77167968,34198.0,34197.0,0.00524565]
[1625697929326,9.96497968,34198.0,34197.0,0.00524565]
[1625697929476,9.96497968,34198.0,34196.0,0.00526498]
[1625697929629,4.77148903,34197.0,34195.0,1.20239574]
[1625697929925,4.77078178,34196.0,34195.0,1.20239574]
[1625697930526,4.77078178,34196.0,34195.0,1.20765368]
[1625697931582,4.77078178,34196.0,34195.0,0.52055327]
[1625697935034,4.77078178,34196.0,34193.0,0.48024407]
[1625697935335,4.77078178,34196.0,34194.0,0.0052581]
[1625697935486,1.52900268,34197.0,34194.0,0.0052581]
[1625697935638,4.07506212,34195.0,34188.0,0.003]
[1625697935788,0.48115088,34189.0,34188.0,0.003]
[1625697936086,0.48115088,34189.0,34188.0,0.00824471]
[1625697936390,0.48115088,34189.0,34188.0,0.00524471]
[1625697937288,0.48115088,34189.0,34188.0,1.20715166]
[1625697938941,0.48115088,34189.0,34188.0,2.58033055]
[1625697944498,0.48115088,34189.0,34188.0,2.90663055]
[1625697946902,0.48115088,34189.0,34188.0,2.58033055]
[1625697952537,0.48115088,34189.0,34188.0,4.12453603]
[1625697952686,0.24057544,34189.0,34188.0,4.12453603]
[1625697952984,0.24057544,34189.0,34188.0,2.58033055]
[1625697953813,0.24057544,34189.0,34188.0,2.82090599]
[1625697957793,0.24057544,34189.0,34188.0,4.36570516]
[1625697961999,0.24057544,34189.0,34188.0,2.82090599]
[1625697965377,4.94796776,34189.0,34188.0,3.85200917]
[1625697965529,6.1335977,34189.0,34188.0,2.47883028]
[1625697965677,6.1335977,34189.0,34188.0,2.23825484]
[1625697965828,6.1335977,34189.0,34188.0,1.03634789]
[1625697965978,6.37417314,34189.0,34188.0,1.03634789]
[1625697966279,7.72897531,34189.0,34188.0,1.03634789]
[1625697966428,7.72897531,34189.0,34186.0,1.20302876]
[1625697966729,2.53877149,34187.0,34185.0,0.001]
[1625697966879,2.76862149,34187.0,34185.0,0.001]
[1625697967032,2.53785633,34186.0,34185.0,0.001]
[1625697967329,2.53785633,34186.0,34185.0,0.00622973]
[1625697967930,2.77843177,34186.0,34185.0,0.00622973]
[1625697968683,4.2989735,34186.0,34185.0,0.00622973]
[1625697968987,3.8394,34181.0,34176.0,1.37459265]
[1625697969283,3.8394,34181.0,34180.0,0.002]
[1625697969585,5.18853163,34181.0,34175.0,0.003]
[1625697969884,1.3489082,34178.0,34175.0,0.003]
[1625697970032,0.72172632,34176.0,34175.0,0.003]
[1625697970183,0.72172632,34176.0,34167.0,1.78585137]
[1625697970335,4.4238,34171.0,34165.0,1.55037753]
[1625697970487,4.67004,34171.0,34165.0,1.55037753]
[1625697970635,4.67004,34171.0,34168.0,0.00523196]
[1625697970786,4.67004,34171.0,34166.0,0.00523201]
[1625697971835,4.67004,34171.0,34165.0,0.005]
[1625697971987,0.48115088,34166.0,34165.0,0.005]
[1625697972286,0.48115088,34166.0,34163.0,0.24057544]
[1625697972436,0.48115088,34166.0,34165.0,0.00523224]
[1625697972737,0.48115088,34166.0,34164.0,0.01023219]
[1625697972889,4.9619,34165.0,34164.0,0.01023219]
[1625697973039,4.9619,34165.0,34164.0,0.005]
[1625697975295,4.9619,34165.0,34160.0,0.24157544]
[1625697975971,0.24057544,34161.0,34160.0,0.24157544]
[1625697976122,0.55179544,34161.0,34160.0,0.24157544]
[1625697978449,5.33989544,34161.0,34160.0,0.24157544]
[1625697980701,0.55179544,34161.0,34160.0,0.24157544]
[1625697981602,0.55179544,34161.0,34160.0,5.21787544]
[1625697987308,0.55179544,34161.0,34160.0,5.21687544]
[1625697988358,0.55179544,34161.0,34160.0,5.22210755]
[1625697990685,0.55179544,34161.0,34160.0,5.21687544]
[1625697992114,0.79237088,34161.0,34156.0,0.001]
[1625697992718,3.8889,34157.0,34156.0,0.001]
[1625697994068,4.37005088,34157.0,34156.0,0.001]
[1625697995192,4.37005088,34157.0,34156.0,0.00622118]
[1625697995494,4.37005088,34157.0,34156.0,0.001]
[1625697995643,0.24057544,34157.0,34156.0,0.001]
[1625697995793,0.001,34163.0,34156.0,0.0062212]
[1625697995944,0.001,34163.0,34156.0,0.22496]
[1625697996094,0.001,34163.0,34162.0,0.72172632]
[1625697996469,0.001,34163.0,34162.0,0.72694684]
[1625698002025,0.32216,34163.0,34162.0,0.72694684]
[1625698002174,0.56273544,34163.0,34162.0,0.72694684]
[1625698005257,0.56173544,34163.0,34162.0,0.72694684]
[1625698006007,0.9929,34165.0,34162.0,0.94241684]
[1625698006157,0.9929,34165.0,34164.0,0.24057544]
[1625698006456,0.9929,34165.0,34164.0,0.2457962]
[1625698006608,0.9929,34165.0,34164.0,5.1549962]
[1625698009838,0.9929,34165.0,34164.0,0.2457962]
[1625698011715,1.27777,34165.0,34164.0,0.2457962]
[1625698012391,1.44491395,34165.0,34164.0,0.2457962]
[1625698013893,1.27777,34165.0,34164.0,0.2457962]
[1625698014118,1.94637531,34165.0,34164.0,0.2457962]
[1625698017346,1.94537531,34165.0,34164.0,0.2457962]
[1625698018697,2.95091688,34165.0,34164.0,0.2457962]
[1625698019223,1.94537531,34165.0,34164.0,0.2457962]
[1625698021702,2.95398709,34165.0,34164.0,0.2457962]
[1625698023809,4.13158272,34165.0,34164.0,0.2457962]
[1625698024931,2.95398709,34165.0,34164.0,0.2457962]
[1625698025230,4.63670943,34165.0,34164.0,0.2457962]
[1625698025455,5.98472984,34165.0,34164.0,0.2457962]
[1625698029960,5.98472984,34165.0,34164.0,0.33176947]
[1625698030410,5.98472984,34165.0,34164.0,0.2457962]
[1625698030861,5.98472984,34165.0,34164.0,0.50372174]
[1625698031311,5.98472984,34165.0,34164.0,0.2457962]
[1625698031610,7.50561742,34165.0,34164.0,0.2457962]
[1625698034691,7.50561742,34165.0,34164.0,0.33179928]
[1625698035442,7.50561742,34165.0,34164.0,0.2457962]
[1625698035893,7.51830176,34165.0,34164.0,0.2457962]
[1625698046255,9.20816552,34165.0,34164.0,0.2457962]
[1625698046556,7.51830176,34165.0,34164.0,0.2457962]
[1625698047006,9.20793107,34165.0,34164.0,0.2457962]
[1625698047156,7.51830176,34165.0,34164.0,0.2457962]
[1625698047456,9.20804803,34165.0,34164.0,0.2457962]
[1625698048656,9.20804803,34165.0,34164.0,0.24057544]
[1625698048955,7.51830176,34165.0,34164.0,0.24579689]
[1625698066835,9.21098703,34165.0,34164.0,0.24579689]
[1625698068789,14.01848703,34165.0,34164.0,0.24579689]
[1625698069013,14.01848703,34165.0,34164.0,0.24057544]
[1625698069389,14.01848703,34165.0,34164.0,0.24579823]
[1625698071868,9.21098703,34165.0,34164.0,0.24579823]
[1625698072847,7.51830176,34165.0,34164.0,0.24579823]
[1625698076527,9.21290109,34165.0,34164.0,0.24579823]
[1625698082315,12.90280109,34165.0,34164.0,0.24579823]
[1625698082462,9.21290109,34165.0,34164.0,0.24579823]
[1625698082913,9.21290109,34165.0,34164.0,5.42189823]
[1625698083216,7.51830176,34165.0,34164.0,5.42189823]
[1625698089902,9.21844455,34165.0,34164.0,5.42189823]
[1625698094034,4.51048471,34165.0,34164.0,5.42189823]
[1625698094184,9.27288722,34165.0,34164.0,5.42189823]
[1625698094935,7.57274443,34165.0,34164.0,5.42189823]
[1625698096363,7.57274443,34165.0,34164.0,5.50805936]
[1625698099066,7.57274443,34165.0,34164.0,5.42189823]
[1625698099216,7.57274443,34165.0,34164.0,5.50806068]
[1625698102147,7.57274443,34165.0,34164.0,5.68039502]
[1625698103198,7.57274443,34165.0,34164.0,5.93888681]
[1625698103498,7.57274443,34165.0,34164.0,5.76655247]
[1625698103722,7.57274443,34165.0,34164.0,6.28353421]
[1625698104398,7.57274443,34165.0,34164.0,5.93887215]
[1625698104849,7.57274443,34165.0,34164.0,6.02503267]
[1625698106126,7.57274443,34165.0,34164.0,5.68037843]
[1625698106426,7.57274443,34165.0,34164.0,6.02501328]
[1625698106877,7.57274443,34165.0,34164.0,5.68037843]
[1625698107177,7.57274443,34165.0,34164.0,6.02501511]
[1625698107851,7.57274443,34165.0,34164.0,5.68037843]
[1625698108301,7.57274443,34165.0,34164.0,6.02500914]
[1625698108601,7.57274443,34165.0,34164.0,5.68037843]
[1625698109053,7.57274443,34165.0,34164.0,5.50805875]
[1625698109277,7.57274443,34165.0,34164.0,5.42189823]
[1625698109954,9.27425406,34165.0,34164.0,5.42189823]
[1625698110254,7.57274443,34165.0,34164.0,5.42189823]
[1625698110707,9.2738772,34165.0,34164.0,5.42189823]
[1625698112736,14.3650772,34165.0,34164.0,5.42189823]
[1625698113333,9.2738772,34165.0,34164.0,5.42189823]
[1625698124305,13.1039772,34165.0,34164.0,5.42189823]
[1625698125809,13.1039772,34165.0,34164.0,0.24579823]
[1625698126105,13.1039772,34165.0,34164.0,0.24057544]
[1625698136841,13.1039772,34165.0,34164.0,0.24580026]
[1625698144801,13.1039772,34165.0,34160.0,0.24157544]
[1625698144802,13.13848177,34165.0,34160.0,0.24157544]
[1625698145102,0.24057544,34161.0,34160.0,0.24157544]
[1625698145252,6.46880295,34161.0,34160.0,0.24157544]
[1625698145402,8.16490625,34161.0,34160.0,0.24679911]
[1625698145552,8.16490625,34161.0,34160.0,0.00622367]
[1625698146153,8.16490625,34161.0,34160.0,0.001]
[1625698146602,8.16490625,34161.0,34155.0,0.24257544]
[1625698147130,6.48036954,34156.0,34155.0,0.24257544]
[1625698147279,6.73826954,34156.0,34155.0,0.24257544]
[1625698147729,6.75095954,34156.0,34155.0,0.24779944]
[1625698147880,10.37165954,34156.0,34155.0,0.24779944]
[1625698148481,12.05681564,34156.0,34155.0,0.24779944]
[1625698148781,12.05681564,34156.0,34155.0,0.24257544]
[1625698152163,10.37165954,34156.0,34155.0,0.24257544]
[1625698154790,6.75095954,34156.0,34155.0,0.24257544]
[1625698154939,6.49305954,34156.0,34155.0,0.24257544]
[1625698155389,6.49305954,34156.0,34155.0,0.24057544]
[1625698155539,6.76083954,34156.0,34155.0,0.24057544]
[1625698158616,6.74814954,34156.0,34155.0,0.24057544]
[1625698159067,6.76080882,34156.0,34155.0,0.24057544]
[1625698160348,2.91400882,34156.0,34155.0,0.24057544]
[1625698160494,2.40565338,34156.0,34155.0,0.54379544]
[1625698160794,1.68649464,34156.0,34155.0,0.54903082]
[1625698161169,1.68649464,34156.0,34155.0,2.50837556]
[1625698161319,1.63209464,34156.0,34155.0,2.50837556]
[1625698161619,0.79669464,34156.0,34155.0,2.50837556]
[1625698161771,0.67463158,34156.0,34155.0,2.50837556]
[1625698162444,0.50734054,34156.0,34155.0,2.50837556]
[1625698162745,0.59200682,34156.0,34155.0,2.50837556]
[1625698163496,0.50734054,34156.0,34155.0,2.50837556]
[1625698164247,0.59203392,34156.0,34155.0,2.50837556]
[1625698164398,0.25386323,34156.0,34155.0,2.50837556]
[1625698164697,0.50744243,34156.0,34155.0,2.50837556]
[1625698165074,0.5921387,34156.0,34155.0,2.50837556]
[1625698165374,0.50744243,34156.0,34155.0,2.50837556]
[1625698165899,0.59215034,34156.0,34155.0,2.50837556]
[1625698166426,0.50744243,34156.0,34155.0,2.50837556]
[1625698166727,0.59212163,34156.0,34155.0,2.50837556]
[1625698166876,0.50744243,34156.0,34155.0,2.50837556]
[1625698167101,0.08471449,34156.0,34155.0,2.50837556]
[1625698167630,0.50749901,34156.0,34155.0,2.50837556]
[1625698168079,0.592191,34156.0,34155.0,2.50837556]
[1625698168380,0.33827632,34156.0,34155.0,2.50837556]
[1625698170558,0.001,34158.0,34155.0,0.78960626]
[1625698170707,0.67626608,34157.0,34155.0,0.54338626]
[1625698170856,0.67626608,34157.0,34155.0,0.48638626]
[1625698171006,0.67626608,34157.0,34156.0,0.69271946]
[1625698171306,0.67626608,34157.0,34156.0,0.9332949]
[1625698172882,0.67626608,34157.0,34156.0,4.4615949]
[1625698173933,0.67626608,34157.0,34156.0,4.45636746]
[1625698175209,0.67626608,34157.0,34156.0,4.21579202]
[1625698175663,0.67626608,34157.0,34156.0,4.93751834]
[1625698175960,0.67626608,34157.0,34156.0,4.25002632]
[1625698176486,0.67626608,34157.0,34156.0,4.93756736]
[1625698176861,0.67626608,34157.0,34156.0,4.25002632]
[1625698177312,2.02826138,34157.0,34156.0,4.59379795]
[1625698177836,0.67626608,34157.0,34156.0,4.93756526]
[1625698178738,0.67626608,34157.0,34156.0,4.94279321]
[1625698181215,0.67626608,34157.0,34156.0,6.14589995]
[1625698181516,0.67626608,34157.0,34156.0,4.94279321]
[1625698181966,0.67626608,34157.0,34156.0,6.14583882]
[1625698182416,0.67626608,34157.0,34156.0,4.94279321]
[1625698185717,0.67626608,34157.0,34156.0,4.25525427]
[1625698186019,0.67626608,34157.0,34156.0,4.9427069]
[1625698186319,1.86042535,34157.0,34156.0,4.9427069]
[1625698186770,0.67626608,34157.0,34156.0,4.9427069]
[1625698191728,1.69128232,34157.0,34156.0,5.97381568]
[1625698196307,1.69128232,34157.0,34156.0,5.9824406]
[1625698196608,1.69128232,34157.0,34156.0,5.97381568]
[1625698201265,7.04126815,34157.0,34156.0,4.9427069]
[1625698201564,8.39250785,34157.0,34156.0,4.51303509]
[1625698201867,8.39250785,34157.0,34156.0,4.25002632]
[1625698202690,8.39250785,34157.0,34156.0,4.25527246]
[1625698203743,4.1673,34157.0,34156.0,4.25527246]
[1625698204043,8.39003535,34157.0,34156.0,4.25527246]
[1625698206970,8.39003535,34157.0,34156.0,4.34121129]
[1625698207122,4.22273535,34157.0,34156.0,4.34121129]
[1625698207421,4.22273535,34157.0,34156.0,4.25527246]
[1625698208021,4.22273535,34157.0,34156.0,4.51309797]
[1625698208470,4.22273535,34157.0,34156.0,4.25527246]
[1625698210349,5.74327722,34157.0,34156.0,4.25527246]
[1625698210501,5.74327722,34157.0,34156.0,4.25002632]
[1625698211258,5.74327722,34157.0,34156.0,0.72172632]
[1625698211553,5.75592168,34157.0,34156.0,0.48115088]
[1625698211853,5.99649712,34157.0,34156.0,0.48115088]
[1625698212680,5.98385266,34157.0,34156.0,0.48115088]
[1625698213204,5.98385266,34157.0,34156.0,0.24057544]
[1625698214405,7.67095903,34157.0,34156.0,0.24057544]
[1625698214555,5.98385266,34157.0,34156.0,0.24057544]
[1625698215234,7.67033568,34157.0,34156.0,0.24057544]
[1625698216282,7.67033568,34157.0,34152.0,0.001]
[1625698216434,5.73597741,34153.0,34152.0,0.001]
[1625698216584,6.02258741,34153.0,34152.0,0.001]
[1625698217936,6.26316285,34153.0,34152.0,0.001]
[1625698219964,5.97655285,34153.0,34152.0,0.001]
[1625698221990,5.97655285,34153.0,34152.0,0.24157544]
[1625698224919,6.25773285,34153.0,34152.0,0.24157544]
[1625698227246,6.25773285,34153.0,34152.0,0.24057544]
[1625698230327,6.27038217,34153.0,34152.0,0.24057544]
[1625698232511,5.98920217,34153.0,34152.0,0.24057544]
[1625698240397,5.98920217,34153.0,34148.0,0.24157544]
[1625698240547,5.98920217,34153.0,34148.0,0.001]
[1625698240698,1.01264017,34152.0,34148.0,0.001]
[1625698240847,5.74489122,34149.0,34148.0,0.001]
[1625698241296,5.74489122,34149.0,34143.0,0.002]
[1625698241297,5.75753203,34149.0,34143.0,0.002]
[1625698241597,5.74153436,34144.0,34143.0,0.002]
[1625698241747,5.99704436,34144.0,34143.0,0.002]
[1625698242047,6.73141191,34144.0,34143.0,0.00724569]
[1625698242347,6.73141191,34144.0,34143.0,0.002]
[1625698242647,6.73141191,34144.0,34143.0,0.00724571]
[1625698242798,6.73141191,34144.0,34143.0,0.002]
[1625698243173,6.73141191,34144.0,34143.0,0.00724571]
[1625698243322,6.73141191,34144.0,34143.0,0.002]
[1625698243701,6.73141191,34144.0,34143.0,0.00724566]
[1625698243849,6.73141191,34144.0,34143.0,0.002]
[1625698244149,5.21164862,34144.0,34143.0,0.002]
[1625698244299,5.21164862,34144.0,34143.0,0.00724556]
[1625698248051,4.95613862,34144.0,34143.0,0.00724556]
[1625698248502,4.94349739,34144.0,34143.0,0.00724556]
[1625698248881,4.95613829,34144.0,34143.0,0.00724556]
[1625698249028,4.94349739,34144.0,34143.0,0.00724556]
[1625698249328,4.94349739,34144.0,34143.0,0.00524556]
[1625698249628,4.94349739,34144.0,34141.0,0.00524554]
[1625698250005,0.72172632,34144.0,34143.0,0.00524554]
[1625698250155,0.72172632,34144.0,34142.0,0.00524402]
[1625698250304,4.94066294,34144.0,34142.0,0.00524402]
[1625698250454,4.72527871,34143.0,34140.0,0.24057544]
[1625698250756,3.37496708,34141.0,34140.0,0.24057544]
[1625698251206,3.37496708,34141.0,34140.0,0.24581946]
[1625698251958,3.69103708,34141.0,34140.0,0.24581946]
[1625698252258,8.59203708,34141.0,34140.0,0.24581946]
[1625698252788,9.94160579,34141.0,34140.0,0.24581946]
[1625698253010,8.59203708,34141.0,34140.0,0.24581946]
[1625698253236,9.94154618,34141.0,34140.0,0.24581946]
[1625698256389,8.59203708,34141.0,34140.0,0.24581946]
[1625698256770,8.59203708,34141.0,34140.0,0.24057544]
[1625698257064,9.94370731,34141.0,34140.0,0.24581952]
[1625698257365,8.59203708,34141.0,34140.0,0.24581952]
[1625698257515,9.94345299,34141.0,34140.0,0.24581952]
[1625698258568,9.94345299,34141.0,34140.0,0.24057544]
[1625698259470,9.94345299,34141.0,34140.0,0.2458202]
[1625698263146,5.04245299,34141.0,34140.0,0.2458202]
[1625698263596,4.72638299,34141.0,34140.0,0.5924902]
[1625698264948,0.50631255,34141.0,34140.0,0.5924902]
[1625698265098,4.73648974,34141.0,34140.0,0.2458202]
[1625698265926,4.73648974,34141.0,34140.0,0.24057544]
[1625698266077,4.73648974,34141.0,34140.0,0.24582007]
[1625698267130,4.7491354,34141.0,34140.0,0.24582007]
[1625698267427,4.73648974,34141.0,34140.0,0.24582007]
[1625698267728,4.7491354,34141.0,34140.0,0.24582007]
[1625698268179,4.73648974,34141.0,34140.0,0.24582007]
[1625698268479,4.74913515,34141.0,34140.0,0.24582007]
[1625698269232,8.45753515,34141.0,34140.0,0.24582007]
[1625698269533,9.98161976,34141.0,34140.0,0.24582007]
[1625698269689,8.45753515,34141.0,34140.0,0.24582007]
[1625698270660,9.98259333,34141.0,34140.0,0.24582007]
[1625698271861,6.27419333,34141.0,34140.0,0.24582007]
[1625698272093,6.27419333,34141.0,34140.0,0.52601007]
[1625698272387,4.74913515,34141.0,34140.0,0.52601007]
[1625698272536,4.74913515,34141.0,34140.0,5.66751007]
[1625698272839,4.74913515,34141.0,34140.0,0.52601007]
[1625698274713,4.74913515,34141.0,34140.0,0.78403672]
[1625698275012,4.74913515,34141.0,34140.0,1.12807221]
[1625698275689,4.74913515,34141.0,34140.0,0.78403672]
[1625698278016,4.74913515,34141.0,34140.0,0.50384672]
[1625698278168,4.96252515,34141.0,34140.0,0.26327128]
[1625698278317,8.42556451,34141.0,34140.0,0.1772624]
[1625698278467,8.42556451,34141.0,34136.0,0.001]
[1625698278766,2.54502208,34137.0,34136.0,0.001]
[1625698278917,7.97452692,34137.0,34136.0,0.001]
[1625698279368,7.98714911,34137.0,34131.0,0.002]
[1625698279518,8.02168558,34137.0,34131.0,0.002]
[1625698279668,6.27019594,34132.0,34131.0,0.002]
[1625698279817,6.56668594,34132.0,34131.0,0.002]
[1625698280121,6.5793088,34132.0,34131.0,0.002]
[1625698280268,7.30103512,34132.0,34131.0,0.002]
[1625698281918,7.28841226,34132.0,34131.0,0.002]
[1625698288383,7.28841226,34132.0,34127.0,0.001]
[1625698288532,2.54332127,34132.0,34127.0,0.001]
[1625698288833,4.73419604,34128.0,34127.0,0.001]
[1625698290336,4.97477148,34128.0,34127.0,0.001]
[1625698293413,3.62221649,34128.0,34127.0,0.001]
[1625698294840,4.97484446,34128.0,34127.0,0.001]
[1625698295140,6.49549114,34128.0,34127.0,0.001]
[1625698297390,6.49549114,34128.0,34122.0,0.059]
[1625698297391,6.49549114,34128.0,34123.0,0.001]
[1625698297691,3.3775711,34124.0,34123.0,0.001]
[1625698298291,3.61814654,34124.0,34123.0,0.001]
[1625698302649,3.91846654,34124.0,34123.0,0.001]
[1625698303403,2.73638419,34124.0,34123.0,0.001]
[1625698303550,2.43606419,34124.0,34123.0,0.001]
[1625698303700,2.72270419,34124.0,34123.0,0.001]
[1625698305053,2.72270419,34124.0,34123.0,5.0169]
[1625698305955,2.72270419,34124.0,34123.0,5.02215924]
[1625698306328,2.72270419,34124.0,34123.0,5.02115924]
[1625698306481,3.61589186,34124.0,34123.0,5.02115924]
[1625698306629,3.61589186,34124.0,34123.0,5.0159]
[1625698307531,3.61589186,34124.0,34123.0,5.02115922]
[1625698307982,2.44868379,34124.0,34123.0,5.02115922]
[1625698308583,2.43606419,34124.0,34123.0,5.02115922]
[1625698308732,2.44868374,34124.0,34123.0,5.02115922]
[1625698310383,3.62840261,34124.0,34123.0,5.02115922]
[1625698311139,2.44868374,34124.0,34123.0,5.02115922]
[1625698314890,3.62641666,34124.0,34123.0,5.02115922]
[1625698315941,3.91348666,34124.0,34123.0,5.02115922]
[1625698318493,3.91348666,34124.0,34123.0,5.26173466]
[1625698319470,5.25876657,34124.0,34123.0,5.26173466]
[1625698320370,3.91348666,34124.0,34123.0,5.26173466]
[1625698320520,3.62641666,34124.0,34123.0,5.26173466]
[1625698320896,4.97214958,34124.0,34123.0,5.26173466]
[1625698327650,4.97214958,34124.0,34123.0,0.24583466]
[1625698329378,4.97214958,34124.0,34123.0,0.58680466]
[1625698332235,3.62641666,34124.0,34123.0,0.67274519]
[1625698332687,3.62641666,34124.0,34123.0,0.84463733]
[1625698333288,3.62641666,34124.0,34123.0,0.67274519]
[1625698333439,4.98148717,34124.0,34123.0,1.18872632]
[1625698333970,4.98148717,34124.0,34123.0,1.10278579]
[1625698334266,4.98148717,34124.0,34123.0,1.18878344]
[1625698334418,4.98148717,34124.0,34123.0,0.84479602]
[1625698335018,4.98148717,34124.0,34123.0,0.67280231]
[1625698335544,4.98148717,34124.0,34123.0,1.10334917]
[1625698335694,4.98148717,34124.0,34123.0,1.18943963]
[1625698335994,4.98148717,34124.0,34123.0,1.10334917]
[1625698336145,4.98148717,34124.0,34123.0,0.93116767]
[1625698336295,4.96886762,34124.0,34123.0,1.10336865]
[1625698336747,4.96886762,34124.0,34123.0,1.79210891]
[1625698337345,4.96886762,34124.0,34123.0,2.82689797]
[1625698337645,4.98151717,34124.0,34123.0,2.82689797]
[1625698337795,6.50932968,34124.0,34123.0,2.82689797]
[1625698338622,6.50932968,34124.0,34123.0,1.79210891]
[1625698338923,6.50932968,34124.0,34123.0,2.8269469]
[1625698339675,6.50932968,34124.0,34123.0,1.79210891]
[1625698340424,6.50932968,34124.0,34123.0,2.82715091]
[1625698340576,6.50932968,34124.0,34123.0,1.79210891]
[1625698344179,6.26875424,34124.0,34123.0,2.82718595]
[1625698344331,6.25610469,34124.0,34123.0,2.82718595]
[1625698344478,4.72829218,34124.0,34123.0,5.41478283]
[1625698344629,4.72829218,34124.0,34123.0,5.65535827]
[1625698345080,2.19548875,34124.0,34123.0,7.20770508]
[1625698345381,1.18225119,34124.0,34123.0,7.20770508]
[1625698345530,0.5067032,34124.0,34123.0,7.20770508]
[1625698346129,0.51099695,34124.0,34123.0,7.20770508]
[1625698346430,0.5957547,34125.0,34123.0,7.20770508]
[1625698346580,0.5957547,34125.0,34124.0,6.61591313]
[1625698346730,0.5957547,34125.0,34124.0,6.62115931]
[1625698346880,0.25544492,34125.0,34124.0,6.62115931]
[1625698347180,0.51053804,34125.0,34124.0,6.62115931]
[1625698347480,0.25545502,34125.0,34124.0,6.62115931]
[1625698348236,0.0852151,34125.0,34124.0,6.62115931]
[1625698348985,0.59664046,34126.0,34124.0,6.62115931]
[1625698349282,0.25629033,34126.0,34125.0,6.37719372]
[1625698349434,0.59645061,34126.0,34125.0,6.37719372]
[1625698350409,0.85085099,34126.0,34125.0,4.82726053]
[1625698350635,2.208644,34126.0,34125.0,4.82726053]
[1625698350934,2.208644,34126.0,34125.0,3.44954214]
[1625698353112,2.208644,34126.0,34125.0,4.82650011]
[1625698353411,1.18990598,34126.0,34125.0,4.82650011]
[1625698353561,0.51069071,34126.0,34125.0,4.82650011]
[1625698353787,0.85051698,34126.0,34125.0,4.82650011]
[1625698354090,0.51069071,34126.0,34125.0,4.82650011]
[1625698355140,1.18986335,34126.0,34125.0,4.82650011]
[1625698355445,1.18986335,34126.0,34125.0,3.44954214]
[1625698355970,2.20828363,34126.0,34125.0,3.44954214]
[1625698356120,1.18986335,34126.0,34125.0,3.44954214]
[1625698356798,1.18986335,34126.0,34125.0,4.82592929]
[1625698357096,0.51069071,34126.0,34125.0,4.82592929]
[1625698357245,0.50969071,34126.0,34125.0,4.82592929]
[1625698357922,2.20699463,34126.0,34125.0,3.44954214]
[1625698359499,3.69388235,34126.0,34125.0,1.21074975]
[1625698359648,5.04958517,34126.0,34125.0,0.26333148]
[1625698359797,5.04958517,34126.0,34125.0,0.25808533]
[1625698359948,5.04958517,34126.0,34124.0,0.89977917]
[1625698360102,0.50835032,34125.0,34124.0,0.84277917]
[1625698360252,4.74386892,34125.0,34124.0,0.49866539]
[1625698360549,4.74386892,34125.0,34124.0,0.50390594]
[1625698360701,4.74386892,34125.0,34124.0,0.33184597]